bitfinex/quotes_BTCUSD_20220207
["timestamp","ask_amount","ask_price","bid_price","bid_amount"]
[1644227369517,0.05,42400.0,42395.0,0.26281093]
[1644227369718,0.32858974,42402.0,42395.0,0.26220004]
[1644227369916,0.32858974,42402.0,42395.0,0.26281093]
[1644227370922,0.32858974,42402.0,42395.0,0.26220004]
[1644227370923,0.05,42399.0,42395.0,0.26220004]
[1644227371119,0.05,42399.0,42396.0,0.00061087]
[1644227372158,0.05,42399.0,42395.0,0.26220004]
[1644227372358,0.05,42399.0,42395.0,0.26281092]
[1644227372858,0.05,42398.0,42395.0,0.26281092]
[1644227373260,0.05,42398.0,42395.0,0.26220004]
[1644227373859,0.42858974,42402.0,42395.0,0.26220004]
[1644227374262,0.06639239,42401.0,42395.0,0.26720004]
[1644227374761,0.02139239,42401.0,42396.0,0.00061354]
[1644227375164,0.02039239,42401.0,42396.0,0.00061354]
[1644227375610,0.045,42400.0,42396.0,0.00061354]
[1644227375913,0.02039239,42401.0,42396.0,0.00061353]
[1644227376310,0.02119833,42400.0,42396.0,0.00061353]
[1644227376511,0.045,42397.0,42396.0,0.00061353]
[1644227376912,0.2615453,42399.0,42395.0,0.26220004]
[1644227377111,0.045,42396.0,42395.0,0.26220004]
[1644227377511,0.108992,42398.0,42395.0,0.26220004]
[1644227378917,0.045,42396.0,42395.0,0.26220004]
[1644227379561,0.05,42398.0,42395.0,0.26200004]
[1644227379960,0.05,42400.0,42395.0,0.26200004]
[1644227380260,0.045,42396.0,42395.0,0.26200004]
[1644227380460,0.31276629,42396.0,42394.0,0.00017306]
[1644227380665,0.675585,42395.0,42393.0,0.00061339]
[1644227380865,0.3,42394.0,42393.0,0.00061339]
[1644227381074,0.328285,42394.0,42393.0,0.00061339]
[1644227381662,0.328285,42394.0,42392.0,0.00017306]
[1644227381863,0.328285,42393.0,42391.0,0.31675041]
[1644227382063,0.05,42392.0,42391.0,0.31675041]
[1644227382464,0.0473,42395.0,42391.0,0.31675041]
[1644227382666,0.328285,42394.0,42391.0,0.31675041]
[1644227382911,0.328285,42392.0,42391.0,0.316137]
[1644227383111,0.26248972,42393.0,42391.0,0.31006]
[1644227383311,0.328343,42392.0,42391.0,0.31006]
[1644227383511,0.373343,42392.0,42391.0,0.31006]
[1644227383911,0.373343,42392.0,42391.0,0.23891635]
[1644227384411,0.328343,42392.0,42391.0,0.23891635]
[1644227384612,0.373343,42392.0,42391.0,0.23891635]
[1644227384811,0.328343,42392.0,42391.0,0.23891635]
[1644227386317,0.60445221,42392.0,42391.0,0.23891635]
[1644227386566,0.60445221,42392.0,42391.0,0.30309656]
[1644227388262,0.64945221,42392.0,42391.0,0.30309656]
[1644227388868,0.64945221,42392.0,42390.0,0.00017306]
[1644227389068,0.26251028,42391.0,42386.0,0.00017306]
[1644227389268,0.280995,42390.0,42389.0,0.00065803]
[1644227389468,0.691187,42390.0,42389.0,0.00065803]
[1644227389867,0.8763954,42390.0,42389.0,0.00065803]
[1644227390066,1.08766445,42390.0,42389.0,0.00065803]
[1644227390307,1.17661335,42390.0,42379.0,0.00017306]
[1644227390509,1.17661335,42390.0,42378.0,0.42017306]
[1644227390708,0.045,42382.0,42378.0,0.42017306]
[1644227390908,0.059013,42385.0,42378.0,0.42017306]
[1644227390909,0.28027118,42383.0,42378.0,0.42017306]
[1644227391310,0.33027118,42383.0,42378.0,0.42017306]
[1644227391511,0.045,42380.0,42378.0,0.42017306]
[1644227391710,0.045,42380.0,42378.0,0.42065762]
[1644227391711,0.27810504,42379.0,42378.0,0.42065762]
[1644227391912,0.60644804,42379.0,42378.0,0.00065762]
[1644227392109,0.65644804,42379.0,42378.0,0.00065762]
[1644227392311,0.90600522,42379.0,42378.0,0.00065762]
[1644227392510,0.90600522,42379.0,42377.0,0.16371588]
[1644227392511,0.85865722,42379.0,42377.0,0.16371588]
[1644227392711,0.28378962,42378.0,42377.0,0.16354282]
[1644227393612,0.33108962,42378.0,42377.0,0.16354282]
[1644227393811,0.65943262,42378.0,42377.0,0.16354282]
[1644227394260,0.75943262,42378.0,42377.0,0.16354282]
[1644227394461,0.375643,42378.0,42377.0,0.16354282]
[1644227394662,0.0473,42378.0,42377.0,0.16354282]
[1644227394861,0.0923,42378.0,42377.0,0.16354282]
[1644227395259,0.0473,42378.0,42377.0,0.16354282]
[1644227395663,0.31280944,42378.0,42377.0,0.16354282]
[1644227396060,0.35780944,42378.0,42377.0,0.16354282]
[1644227396462,0.31280944,42378.0,42377.0,0.16354282]
[1644227396664,0.35780944,42378.0,42377.0,0.16354282]
[1644227397062,0.31280944,42378.0,42377.0,0.16354282]
[1644227397263,0.0923,42378.0,42377.0,0.16354282]
[1644227397810,0.34994373,42378.0,42377.0,0.16354282]
[1644227398311,0.5318198,42378.0,42377.0,0.16354282]
[1644227398513,0.9101628,42378.0,42377.0,0.16257678]
[1644227401117,0.82828673,42378.0,42377.0,0.16257678]
[1644227402162,0.77828673,42378.0,42377.0,0.16257678]
[1644227402359,0.109021,42379.0,42377.0,0.16257678]
[1644227402360,0.05,42379.0,42377.0,0.16257678]
[1644227402560,0.01986615,42381.0,42377.0,0.16257678]
[1644227402966,0.75,42377.0,42359.0,0.0011]
[1644227403166,0.01986615,42381.0,42363.0,0.0021]
[1644227403167,0.325995,42372.0,42363.0,0.0021]
[1644227403365,0.773295,42372.0,42371.0,0.01427895]
[1644227403568,0.523295,42372.0,42369.0,7.895e-05]
[1644227403765,0.523295,42372.0,42363.0,0.0021]
[1644227403766,0.80629289,42369.0,42363.0,0.0021]
[1644227403965,0.69685387,42364.0,42363.0,0.0021]
[1644227404165,0.79415387,42364.0,42362.0,0.0011]
[1644227404363,0.328343,42363.0,42362.0,0.0011]
[1644227404568,0.375643,42363.0,42362.0,0.0011]
[1644227404866,0.520643,42363.0,42362.0,0.0011]
[1644227405064,0.475643,42363.0,42362.0,0.0011]
[1644227405615,0.81340821,42363.0,42362.0,0.0011]
[1644227405815,0.7498149,42363.0,42362.0,0.0011]
[1644227406215,0.7948149,42363.0,42362.0,0.0011]
[1644227406818,0.7498149,42363.0,42362.0,0.0011]
[1644227407118,0.7948149,42363.0,42362.0,0.0011]
[1644227407316,0.475643,42363.0,42362.0,0.0011]
[1644227407617,0.059051,42365.0,42362.0,0.0011]
[1644227407824,0.1,42369.0,42364.0,0.05]
[1644227408018,0.1,42369.0,42368.0,0.05]
[1644227408221,0.1,42369.0,42368.0,0.0973]
[1644227408420,0.1,42369.0,42368.0,0.04550224]
[1644227408818,0.06923277,42373.0,42368.0,0.04550224]
[1644227409262,0.280974,42372.0,42368.0,0.04550224]
[1644227409462,0.05,42369.0,42362.0,0.0011]
[1644227409666,0.05,42369.0,42368.0,0.0006566]
[1644227409667,0.280974,42369.0,42368.0,0.0006566]
[1644227409863,0.330974,42369.0,42368.0,0.0006566]
[1644227410062,0.380974,42369.0,42368.0,0.0006566]
[1644227410263,0.430974,42369.0,42368.0,0.0006566]
[1644227410661,0.430974,42369.0,42362.0,0.0011]
[1644227410662,0.530974,42369.0,42362.0,0.0011]
[1644227410863,0.23368934,42365.0,42362.0,0.0011]
[1644227411162,0.41475117,42364.0,42362.0,0.0011]
[1644227411364,0.13377717,42364.0,42362.0,0.0011]
[1644227412362,0.42907696,42364.0,42362.0,0.0011]
[1644227412569,0.05,42363.0,42362.0,0.0011]
[1644227412819,0.330974,42363.0,42362.0,0.0011]
[1644227413517,0.430974,42363.0,42362.0,0.0011]
[1644227415120,0.330974,42363.0,42362.0,0.0011]
[1644227415521,0.43812496,42364.0,42362.0,0.0011]
[1644227415724,0.02173422,42366.0,42362.0,0.0011]
[1644227416565,0.0414639,42366.0,42362.0,0.0011]
[1644227416758,0.01972968,42366.0,42362.0,0.0011]
[1644227416957,0.01972968,42366.0,42362.0,0.00175611]
[1644227417958,0.01972968,42366.0,42362.0,0.0011]
[1644227418160,0.01972968,42366.0,42362.0,0.00171497]
[1644227418660,0.01968127,42366.0,42362.0,0.00171497]
[1644227418859,0.01968127,42366.0,42364.0,0.21205337]
[1644227419061,0.01968127,42366.0,42365.0,0.891801]
[1644227419263,0.24362412,42377.0,42366.0,0.75]
[1644227419264,0.05,42377.0,42366.0,0.75]
[1644227419462,0.1171,42386.0,42367.0,0.37578]
[1644227419662,0.1171,42386.0,42368.0,0.37099277]
[1644227419865,0.05,42387.0,42368.0,0.52099277]
[1644227419866,0.31372821,42387.0,42368.0,0.52099277]
[1644227420065,0.31372821,42387.0,42377.0,0.25927762]
[1644227420315,0.19298922,42383.0,42376.0,0.07011414]
[1644227420516,0.19298922,42383.0,42374.0,0.31217948]
[1644227420714,0.19298922,42383.0,42370.0,0.3423145]
[1644227420914,0.19298922,42383.0,42370.0,0.34213598]
[1644227421119,0.19298922,42383.0,42370.0,0.3423145]
[1644227421315,0.19298922,42383.0,42370.0,0.34213598]
[1644227421515,0.19298922,42383.0,42373.0,0.21773276]
[1644227421716,0.19298922,42383.0,42374.0,0.00041346]
[1644227422016,0.06693736,42380.0,42374.0,0.00059198]
[1644227422217,0.06693736,42380.0,42374.0,0.00041346]
[1644227422816,0.11693736,42380.0,42369.0,0.00017852]
[1644227423018,0.05,42380.0,42375.0,0.00063232]
[1644227423514,0.26380712,42383.0,42375.0,0.00063232]
[1644227423716,0.05,42380.0,42375.0,0.00063232]
[1644227423915,0.2532676,42376.0,42371.0,0.00017852]
[1644227424165,0.05,42375.0,42368.0,0.00017852]
[1644227424364,0.05,42375.0,42367.0,0.37453775]
[1644227424763,0.24366381,42374.0,42367.0,0.37453775]
[1644227424967,0.24366381,42374.0,42367.0,0.00017852]
[1644227425166,0.24366381,42374.0,42366.0,0.77191998]
[1644227425364,0.24366381,42374.0,42368.0,0.00063238]
[1644227425563,0.05,42375.0,42368.0,0.00063238]
[1644227426263,0.05,42375.0,42367.0,0.00017852]
[1644227426466,0.05,42375.0,42369.0,0.00061748]
[1644227426666,0.2528081,42373.0,42369.0,0.00061748]
[1644227426869,0.36521316,42370.0,42369.0,0.00061748]
[1644227427066,0.46521316,42370.0,42369.0,0.00061748]
[1644227427267,0.46521316,42370.0,42369.0,0.00055574]
[1644227427471,0.41521316,42370.0,42363.0,0.00017852]
[1644227427667,0.05,42368.0,42362.0,0.00127852]
[1644227427914,0.2339237,42367.0,42362.0,0.00127852]
[1644227428111,0.05,42363.0,42362.0,0.00127852]
[1644227428312,0.05,42363.0,42362.0,0.0011]
[1644227428511,0.05,42366.0,42362.0,0.0011]
[1644227428815,0.05,42367.0,42363.0,0.20622529]
[1644227429013,0.05,42367.0,42363.0,0.20640381]
[1644227429212,0.01808155,42371.0,42363.0,0.20640381]
[1644227429612,0.01808155,42371.0,42363.0,0.00017852]
[1644227429812,0.28315597,42371.0,42363.0,0.00017852]
[1644227430215,0.28315597,42371.0,42362.0,0.0011]
[1644227430216,0.33315597,42371.0,42365.0,0.00065703]
[1644227430816,0.06748996,42370.0,42365.0,0.00065703]
[1644227431216,0.06748996,42370.0,42363.0,0.00017852]
[1644227431414,0.06748996,42370.0,42365.0,0.00065703]
[1644227431662,0.31507442,42371.0,42365.0,0.00065703]
[1644227432459,0.31507442,42371.0,42363.0,0.00017852]
[1644227432664,0.31007442,42371.0,42366.0,0.00065702]
[1644227433262,0.01962982,42372.0,42366.0,0.00065702]
[1644227433461,0.0002,42375.0,42366.0,0.00065702]
[1644227433663,0.0002,42375.0,42363.0,0.00017852]
[1644227433861,0.0002,42375.0,42367.0,0.00065701]
[1644227434262,0.22682627,42374.0,42367.0,0.00065701]
[1644227434463,0.48250464,42374.0,42367.0,0.00065701]
[1644227434663,0.48250464,42374.0,42367.0,0.00083553]
[1644227434862,0.48250464,42374.0,42367.0,0.00017852]
[1644227435063,0.22682627,42374.0,42368.0,0.000657]
[1644227435313,0.27682627,42374.0,42368.0,0.000657]
[1644227436113,0.47692031,42374.0,42369.0,0.00065699]
[1644227436311,0.27682627,42374.0,42369.0,0.00065699]
[1644227436512,0.05,42374.0,42369.0,0.00065699]
[1644227436714,0.0002,42375.0,42369.0,0.00065699]
[1644227437014,0.0002,42375.0,42369.0,0.00083551]
[1644227437214,0.0002,42375.0,42369.0,0.00017852]
[1644227437414,0.20584053,42372.0,42370.0,0.00065699]
[1644227437614,0.25584053,42372.0,42370.0,0.00065699]
[1644227438415,0.25584053,42372.0,42365.0,0.00017852]
[1644227438615,0.48641967,42372.0,42369.0,0.00065699]
[1644227439464,0.08589064,42373.0,42369.0,0.00065699]
[1644227439465,0.05,42373.0,42369.0,0.00065699]
[1644227439664,0.33776052,42375.0,42364.0,0.32848]
[1644227439665,0.0502,42375.0,42364.0,0.32848]
[1644227439866,0.0002,42375.0,42368.0,0.000657]
[1644227440469,0.22434918,42373.0,42368.0,0.000657]
[1644227440667,0.27434918,42373.0,42368.0,0.000657]
[1644227440866,0.27434918,42373.0,42366.0,0.00017852]
[1644227441069,0.27434918,42373.0,42368.0,0.000657]
[1644227441070,0.05,42373.0,42368.0,0.000657]
[1644227441266,0.23343567,42375.0,42368.0,0.000657]
[1644227441267,0.28343567,42375.0,42368.0,0.000657]
[1644227442069,0.25701542,42372.0,42365.0,0.00017852]
[1644227442267,0.30701542,42372.0,42369.0,0.00065699]
[1644227443112,0.30701542,42372.0,42363.0,0.00017852]
[1644227443308,0.30701542,42372.0,42368.0,0.000657]
[1644227443710,0.23343567,42375.0,42368.0,0.000657]
[1644227443911,0.05,42374.0,42368.0,0.000657]
[1644227444111,0.0002,42375.0,42368.0,0.000657]
[1644227444516,0.0002,42375.0,42368.0,0.04747852]
[1644227444712,0.0002,42375.0,42369.0,0.00065699]
[1644227445111,0.0002,42375.0,42369.0,0.00083551]
[1644227445714,0.56429401,42377.0,42365.0,0.75]
[1644227445912,0.56429401,42377.0,42370.0,0.00065699]
[1644227446112,0.33038947,42377.0,42370.0,0.00065699]
[1644227446310,0.28038947,42377.0,42370.0,0.00065699]
[1644227446569,0.28038947,42377.0,42370.0,0.00083551]
[1644227446766,0.26042512,42377.0,42370.0,0.00017852]
[1644227446962,0.31042512,42377.0,42371.0,0.00065697]
[1644227447162,0.26042512,42377.0,42371.0,0.00065697]
[1644227447363,0.05,42376.0,42371.0,0.00065697]
[1644227447662,0.26042512,42377.0,42371.0,0.00065697]
[1644227447963,0.05,42377.0,42371.0,0.00065697]
[1644227448166,0.02003538,42379.0,42372.0,0.04795697]
[1644227448368,0.02003538,42379.0,42372.0,0.16595997]
[1644227448566,0.02003538,42379.0,42373.0,0.32848]
[1644227448764,0.24460858,42387.0,42377.0,0.21938004]
[1644227448965,0.01877037,42380.0,42379.0,0.08647113]
[1644227449165,0.01877037,42380.0,42379.0,0.14547113]
[1644227449364,0.01877037,42380.0,42379.0,0.38748]
[1644227449565,0.01877037,42380.0,42379.0,0.059]
[1644227449766,0.01877037,42380.0,42373.0,0.0473]
[1644227450411,0.27426243,42378.0,42372.0,0.22754061]
[1644227450613,0.20478341,42378.0,42369.0,0.2119879]
[1644227450814,0.20478341,42378.0,42370.0,0.32865852]
[1644227451015,0.05,42378.0,42373.0,0.32848]
[1644227451216,0.05,42385.0,42374.0,0.0473]
[1644227451414,0.02000575,42387.0,42374.0,0.0473]
[1644227451613,0.36482114,42387.0,42374.0,0.0473]
[1644227451814,0.57440993,42387.0,42380.0,0.07759937]
[1644227452012,0.22959454,42387.0,42380.0,0.07759937]
[1644227452214,0.02000575,42387.0,42381.0,0.29147127]
[1644227452416,0.02000575,42387.0,42381.0,0.30427127]
[1644227452616,0.02000575,42387.0,42382.0,0.32848]
[1644227452918,0.02091165,42391.0,42382.0,0.32848]
[1644227453117,0.02091165,42391.0,42390.0,0.25386335]
[1644227453318,0.02091165,42391.0,42390.0,0.39100768]
[1644227453519,0.02091165,42391.0,42387.0,0.23788274]
[1644227453716,0.02091165,42391.0,42388.0,0.64111183]
[1644227454169,0.02091165,42391.0,42389.0,0.058986]
[1644227454469,0.02091165,42391.0,42390.0,0.32848]
[1644227454670,0.02091165,42391.0,42387.0,0.00065737]
[1644227455269,0.02091165,42391.0,42382.0,0.02158513]
[1644227455270,0.26091878,42390.0,42382.0,0.02158513]
[1644227455470,0.31091878,42390.0,42387.0,0.00065737]
[1644227455868,0.05,42388.0,42387.0,0.00065737]
[1644227456467,0.05,42388.0,42382.0,0.02158513]
[1644227456767,0.05,42388.0,42376.0,0.4673]
[1644227456768,0.05,42388.0,42385.0,0.00065739]
[1644227457469,0.31091878,42390.0,42385.0,0.00065739]
[1644227457668,0.31091878,42390.0,42383.0,0.08097605]
[1644227457920,0.32535017,42397.0,42384.0,0.00063523]
[1644227457921,0.0201589,42396.0,42384.0,0.00063523]
[1644227458220,0.0201589,42396.0,42385.0,0.32848]
[1644227458414,0.0201589,42396.0,42387.0,0.32848]
[1644227458816,0.22623427,42397.0,42387.0,0.38747]
[1644227459117,0.01890167,42396.0,42393.0,0.08087754]
[1644227460418,0.01890167,42396.0,42393.0,0.13986254]
[1644227460817,0.31575463,42398.0,42393.0,0.13986254]
[1644227461417,0.31575463,42398.0,42393.0,0.058985]
[1644227461672,0.05,42398.0,42393.0,0.058985]
[1644227461969,0.05,42403.0,42394.0,0.28980035]
[1644227462172,0.02172568,42404.0,42393.0,0.058985]
[1644227462173,0.07172568,42404.0,42393.0,0.058985]
[1644227462369,0.02172568,42404.0,42393.0,0.058985]
[1644227462570,0.25230652,42403.0,42393.0,0.058985]
[1644227462769,0.25230652,42403.0,42398.0,0.07293319]
[1644227462770,0.30230652,42403.0,42398.0,0.07293319]
[1644227463270,0.05,42403.0,42398.0,0.07293319]
[1644227463470,0.05,42403.0,42394.0,0.25589865]
[1644227463671,0.2389632,42404.0,42393.0,0.058985]
[1644227463672,0.2889632,42404.0,42393.0,0.058985]
[1644227464671,0.2889632,42404.0,42396.0,0.24311835]
[1644227464873,0.02070531,42404.0,42397.0,0.29837961]
[1644227465072,0.02070531,42404.0,42398.0,0.058976]
[1644227465312,0.02070531,42404.0,42402.0,0.07500607]
[1644227466116,0.02070531,42404.0,42398.0,0.058976]
[1644227466313,0.02070531,42404.0,42396.0,0.24311835]
[1644227466515,0.02070531,42404.0,42394.0,0.27692634]
[1644227466713,0.02070531,42404.0,42395.0,0.01872869]
[1644227467117,0.02070531,42404.0,42398.0,0.06540923]
[1644227467315,0.02070531,42404.0,42395.0,0.01872869]
[1644227467517,0.47606602,42405.0,42394.0,0.117951]
[1644227467518,0.05,42402.0,42394.0,0.117951]
[1644227467717,0.47606602,42405.0,42394.0,0.117951]
[1644227467918,0.52606602,42405.0,42394.0,0.117951]
[1644227468918,0.54622187,42405.0,42396.0,0.07217715]
[1644227469367,0.3258083,42405.0,42396.0,0.07217715]
[1644227469968,0.07015585,42405.0,42397.0,0.058975]
[1644227470173,0.02015585,42405.0,42397.0,0.058975]
[1644227470375,0.02015585,42405.0,42398.0,0.67578]
[1644227470673,0.02015585,42405.0,42398.0,0.42578]
[1644227470869,0.02015585,42405.0,42404.0,0.33274786]
[1644227471071,0.02015585,42405.0,42404.0,0.70852786]
[1644227471273,0.02015585,42405.0,42404.0,0.93580602]
[1644227471470,0.00030014,42409.0,42404.0,0.93580602]
[1644227471672,0.00030014,42410.0,42405.0,0.32848]
[1644227471870,0.00030014,42414.0,42405.0,0.1473]
[1644227472075,0.00030014,42415.0,42412.0,0.07951997]
[1644227472272,0.00030014,42414.0,42412.0,0.07951997]
[1644227472472,0.00024443,42415.0,42412.0,0.07951997]
[1644227472672,0.00054457,42415.0,42412.0,0.07951997]
[1644227472917,0.25054457,42416.0,42412.0,0.07916597]
[1644227473416,0.25054457,42416.0,42410.0,0.058963]
[1644227473617,0.25054457,42416.0,42405.0,0.37687073]
[1644227473618,0.05,42415.0,42405.0,0.37687073]
[1644227473916,0.05030014,42415.0,42406.0,0.058969]
[1644227474116,0.05,42412.0,42405.0,0.0473]
[1644227474516,0.05,42412.0,42405.0,0.11619263]
[1644227474716,0.21849372,42408.0,42405.0,0.11619263]
[1644227474918,0.21849372,42408.0,42406.0,0.32848]
[1644227475318,0.00030014,42415.0,42405.0,0.33679151]
[1644227475519,0.30902264,42416.0,42406.0,0.058969]
[1644227475717,0.00030014,42415.0,42406.0,0.058969]
[1644227475918,0.30902264,42416.0,42408.0,0.00065981]
[1644227476118,0.2587225,42416.0,42409.0,0.55]
[1644227476421,0.19819118,42417.0,42409.0,0.55]
[1644227476422,0.24082938,42411.0,42409.0,0.55]
[1644227476667,0.24082938,42411.0,42408.0,0.00065981]
[1644227476971,0.01919548,42417.0,42408.0,0.00065981]
[1644227477171,0.01985514,42417.0,42408.0,0.00065981]
[1644227477368,0.01985514,42417.0,42410.0,0.32848]
[1644227477570,0.01985514,42417.0,42410.0,0.37578]
[1644227477867,0.01985514,42417.0,42416.0,0.31337748]
[1644227478066,0.01919548,42417.0,42416.0,0.31337748]
[1644227478270,0.01943975,42417.0,42416.0,0.64185748]
[1644227478870,0.00097692,42423.0,42417.0,0.75]
[1644227479070,0.00097692,42423.0,42418.0,0.49365]
[1644227479274,0.02177025,42426.0,42420.0,0.32848]
[1644227479473,0.02177025,42426.0,42422.0,0.32848]
[1644227479671,0.02177025,42426.0,42423.0,0.25889112]
[1644227479867,0.02177025,42426.0,42425.0,0.08707113]
[1644227480068,0.02177025,42426.0,42425.0,0.28062872]
[1644227480315,0.02177025,42426.0,42425.0,0.33062872]
[1644227480515,0.02177025,42426.0,42425.0,0.41737672]
[1644227481615,0.21869321,42436.0,42426.0,0.75]
[1644227481814,0.21869321,42436.0,42428.0,0.058935]
[1644227482415,0.05,42434.0,42428.0,0.058935]
[1644227483017,0.21869321,42436.0,42428.0,0.058935]
[1644227483215,0.00024409,42433.0,42428.0,0.058935]
[1644227483818,0.23578858,42430.0,42428.0,0.058935]
[1644227484076,0.23578858,42430.0,42427.0,0.11787]
[1644227484672,0.19853468,42429.0,42427.0,0.11787]
[1644227484969,0.23578858,42430.0,42427.0,0.11787]
[1644227485369,0.23578858,42430.0,42424.0,0.34043833]
[1644227485570,0.23578858,42430.0,42425.0,0.327971]
[1644227486368,0.28578858,42430.0,42425.0,0.327971]
[1644227486571,0.19634909,42428.0,42420.0,0.117885]
[1644227486768,0.28644926,42430.0,42424.0,0.01983486]
[1644227486968,0.05,42427.0,42424.0,0.01983486]
[1644227488016,0.04793,42426.0,42424.0,0.01983486]
[1644227489016,0.31183891,42427.0,42421.0,0.018794]
[1644227489218,0.05,42424.0,42421.0,0.018794]
[1644227489719,0.31208466,42427.0,42421.0,0.018794]
[1644227490120,0.24676247,42423.0,42421.0,0.018794]
[1644227491118,0.25986227,42420.0,42417.0,0.02001485]
[1644227491328,0.05,42418.0,42417.0,0.02001485]
[1644227491578,0.09793,42418.0,42417.0,0.02001485]
[1644227491768,0.14793,42418.0,42417.0,0.02001485]
[1644227492969,0.00066355,42420.0,42417.0,0.02001485]
[1644227493170,0.00066355,42420.0,42418.0,0.327971]
[1644227493769,0.05,42421.0,42418.0,0.327971]
[1644227494070,0.00066353,42421.0,42418.0,0.327971]
[1644227494272,0.00066353,42421.0,42418.0,0.386921]
[1644227494474,0.00029991,42425.0,42420.0,0.117885]
[1644227494672,0.00029991,42422.0,42421.0,0.327971]
[1644227494871,0.00029991,42426.0,42421.0,0.477971]
[1644227495078,0.05,42433.0,42422.0,0.327971]
[1644227495079,0.00029991,42430.0,42422.0,0.327971]
[1644227495321,0.26327999,42431.0,42426.0,0.08994299]
[1644227495519,0.05,42433.0,42426.0,0.08994299]
[1644227495718,0.00029991,42431.0,42426.0,0.08994299]
[1644227495919,0.00029991,42433.0,42426.0,0.08994299]
[1644227496222,0.19584617,42434.0,42426.0,0.08994299]
[1644227496420,0.05,42430.0,42426.0,0.08994299]
[1644227496619,0.05,42430.0,42426.0,0.13994299]
[1644227496920,0.05029991,42430.0,42426.0,0.16149817]
[1644227497119,0.05,42430.0,42427.0,0.327971]
[1644227497519,0.00029991,42433.0,42427.0,0.327971]
[1644227497724,0.9662,42443.0,42426.0,0.16149817]
[1644227497725,0.00029991,42437.0,42426.0,0.16149817]
[1644227497919,0.5546,42440.0,42427.0,0.327971]
[1644227497920,0.00029991,42433.0,42427.0,0.327971]
[1644227498120,0.1644,42440.0,42426.0,0.16149817]
[1644227498121,0.00029991,42439.0,42426.0,0.16149817]
[1644227498321,0.00029991,42437.0,42427.0,0.117855]
[1644227498520,0.00029991,42439.0,42427.0,0.117855]
[1644227498722,0.0006634,42435.0,42433.0,0.08320682]
[1644227498922,0.0006634,42435.0,42434.0,0.3781035]
[1644227499363,0.0006634,42435.0,42434.0,0.05892723]
[1644227499763,0.00029991,42438.0,42434.0,0.05892723]
[1644227499964,0.00066338,42437.0,42434.0,0.05892723]
[1644227500164,0.00066338,42437.0,42434.0,0.04624921]
[1644227500963,0.26901772,42439.0,42434.0,0.04624921]
[1644227501167,0.00066337,42438.0,42430.0,0.13495304]
[1644227501371,0.00066337,42438.0,42430.0,0.08495304]
[1644227501564,0.26124419,42438.0,42433.0,0.01873516]
[1644227501765,0.09793,42434.0,42433.0,0.01873516]
[1644227503024,0.21295731,42432.0,42427.0,0.05]
[1644227503221,0.21295731,42432.0,42426.0,0.06455116]
[1644227504122,0.44392856,42432.0,42424.0,0.3956204]
[1644227504723,0.00066344,42430.0,42424.0,0.16786835]
[1644227505323,0.05,42429.0,42424.0,0.16786835]
[1644227505923,0.05066346,42429.0,42424.0,0.16786835]
[1644227506323,0.00066346,42429.0,42425.0,0.327971]
[1644227506772,0.26295731,42432.0,42425.0,0.327971]
[1644227507373,0.05,42428.0,42425.0,0.327971]
[1644227508078,0.00030046,42431.0,42426.0,0.21932813]
[1644227508274,0.03530046,42432.0,42426.0,0.21932813]
[1644227508474,0.00030046,42431.0,42427.0,0.327971]
[1644227508773,0.00030046,42432.0,42427.0,0.327971]
[1644227508974,0.00030046,42431.0,42427.0,0.327971]
[1644227509172,0.05,42433.0,42427.0,0.327971]
[1644227509373,0.00030046,42432.0,42427.0,0.327971]
[1644227509572,0.19352713,42437.0,42428.0,0.06904823]
[1644227509573,0.00030046,42435.0,42428.0,0.06904823]
[1644227509774,0.00030046,42432.0,42428.0,0.06904823]
[1644227509976,0.00030046,42436.0,42428.0,0.06904823]
[1644227510174,0.00030046,42438.0,42428.0,0.06904823]
[1644227510417,0.05,42439.0,42428.0,0.06904823]
[1644227510418,0.05030046,42439.0,42428.0,0.06904823]
[1644227510622,0.00030046,42438.0,42436.0,0.20845005]
[1644227510819,0.04793,42437.0,42436.0,0.2943511]
[1644227511018,0.05,42439.0,42436.0,0.2943511]
[1644227511219,0.04793,42438.0,42436.0,0.2943511]
[1644227511619,0.05,42439.0,42436.0,0.20845005]
[1644227511620,0.10030046,42439.0,42436.0,0.20845005]
[1644227511820,0.10030046,42439.0,42431.0,0.23016958]
[1644227511821,0.1,42439.0,42431.0,0.05]
[1644227512020,0.10066378,42439.0,42428.0,0.01983788]
[1644227512621,0.10066378,42439.0,42430.0,0.07490015]
[1644227512820,0.1,42439.0,42430.0,0.07490015]
[1644227513021,0.33041534,42439.0,42432.0,0.25943396]
[1644227513324,0.0006638,42437.0,42432.0,0.30943396]
[1644227514181,0.00030046,42438.0,42432.0,0.30943396]
[1644227514378,0.11910208,42439.0,42432.0,0.30943396]
[1644227514379,0.0006638,42437.0,42432.0,0.30943396]
[1644227515383,0.00030046,42438.0,42433.0,0.27107932]
[1644227515581,0.01910208,42439.0,42434.0,0.327971]
[1644227515582,0.0006638,42437.0,42434.0,0.327971]
[1644227515782,0.0006638,42437.0,42434.0,0.525271]
[1644227516184,0.0006638,42437.0,42436.0,0.19533316]
[1644227516380,0.0006638,42437.0,42436.0,0.52330416]
[1644227516581,0.01910208,42439.0,42436.0,0.85000406]
[1644227516783,0.01910208,42439.0,42436.0,0.95000406]
[1644227516784,0.01976586,42439.0,42436.0,0.95000406]
[1644227517383,0.01976586,42439.0,42437.0,0.08122741]
[1644227517586,0.01976586,42439.0,42438.0,0.627971]
[1644227517821,0.01,42449.0,42438.0,0.59309577]
[1644227517822,0.00030046,42442.0,42438.0,0.59309577]
[1644227518017,0.00066377,42440.0,42439.0,0.327971]
[1644227518216,0.00066377,42440.0,42439.0,0.425271]
[1644227518420,0.00066377,42440.0,42439.0,0.525271]
[1644227518620,0.00066377,42440.0,42439.0,0.76878303]
[1644227518817,0.00030046,42445.0,42439.0,0.76878303]
[1644227519018,0.06887622,42446.0,42439.0,0.76878303]
[1644227519219,0.00066375,42442.0,42440.0,0.327971]
[1644227519420,0.00066375,42442.0,42440.0,0.375271]
[1644227520222,0.00030046,42445.0,42442.0,0.07591182]
[1644227520420,0.00066374,42443.0,42442.0,0.327971]
[1644227520620,0.05066374,42443.0,42442.0,0.327971]
[1644227520820,0.00066374,42443.0,42442.0,0.62412979]
[1644227521026,0.00066374,42443.0,42442.0,0.73612269]
[1644227521027,3.74e-06,42443.0,42442.0,0.73612269]
[1644227521226,0.03310225,42449.0,42442.0,0.73612269]
[1644227521227,0.00030046,42448.0,42442.0,0.525271]
[1644227521423,0.0304477,42449.0,42443.0,0.327971]